fUST/lending_fUST_20240115
["ID","MTS","AMOUNT","RATE_DAILY","PERIOD"]
[311669882,1705302632662,-507.44515137,0.0002968,3]
[311669883,1705302632671,-6096.52663763,0.0003,30]
[311669989,1705302644162,-1779.31603066,0.0003,30]
[311669994,1705302646447,-778.34355977,0.0003,30]
[311669999,1705302648710,-6198.13826415,0.0003,30]
[311670000,1705302648719,-197.5089968,0.0003013,2]
[311670001,1705302648728,-500.0,0.00030963,2]
[311670002,1705302648738,-523.08396244,0.00030965,2]
[311670003,1705302648747,-938.12005383,0.00030989,2]
[311670004,1705302648759,-61.87994617,0.00030989,2]
[311670005,1705302648857,-334.9722852,0.00030989,2]
[311670006,1705302648901,-165.0277148,0.00030989,2]
[311670007,1705302648911,-185.87171214,0.00030989,2]
[311670008,1705302648920,-500.0,0.00030989,2]
[311670009,1705302648930,-500.0,0.00030989,2]
[311670010,1705302648939,-500.0,0.00030989,2]
[311670011,1705302648948,-315.68664302,0.00030989,2]
[311670022,1705303419391,164.66079013,0.000299,120]
[311670061,1705303832523,-154.9690062,0.00028727,4]
[311670063,1705303832533,-208.61168792,0.00028728,2]
[311670064,1705303832542,-2190.39294916,0.00028754,2]
[311670095,1705303841611,-799.20621082,0.00028754,2]
[311670130,1705303844237,-293.26520376,0.00028754,2]
[311670132,1705303844246,-333.92645003,0.00028755,3]
[311670134,1705303844258,-2379.99999997,0.00028755,3]
[311670138,1705303844295,-19.03423028,0.00028755,3]
[311670141,1705303844304,-335.63870413,0.00028889,2]
[311670143,1705303844314,-213.4131638,0.0002941,2]
[311670145,1705303844323,-507.44515137,0.0002968,3]
[311670146,1705303844333,-169.79074998,0.0003,4]
[311670148,1705303844342,-1413.42859915,0.00030989,2]
[311670150,1705303844351,-70.2973529,0.00031,2]
[311670240,1705303846649,-517.76839271,0.00031,2]
[311670241,1705303846659,-500.0,0.00031978,2]
[311670243,1705303846669,-500.0,0.00031978,2]
[311670245,1705303846682,-501.95209961,0.00031978,2]
[311670247,1705303846691,-500.0,0.00031999,2]
[311670249,1705303846700,-135.95221763,0.00032,2]
[311670251,1705303846712,-14.04778237,0.00032,2]
[311670252,1705303846721,-500.0,0.00032094,2]
[311670253,1705303846730,-290.63021763,0.00032094,2]
[311670294,1705304949097,-213.13739698,0.00023486,2]
[311670295,1705304949122,-1240.92738063,0.00023487,2]
[311670296,1705304949146,-361.02080012,0.00023487,2]
[311670297,1705304949169,-208.61168792,0.00023487,2]
[311670298,1705304949195,-1577.23828043,0.00023487,2]
[311670299,1705304949217,-175.00244479,0.00023488,2]
[311670300,1705304949242,-154.9690062,0.00023488,4]
[311670301,1705304949265,-154.9690062,0.00023489,2]
[311670302,1705304949285,-187.65703673,0.0002349,2]
[311670321,1705305031772,-606.61751586,0.00022785,2]
[311670322,1705305032634,-8143.94876045,0.00022785,2]
[311670323,1705305032644,-154.9690062,0.00023486,2]
[311670324,1705305032654,-267.17078019,0.00023487,2]
[311670325,1705305032663,-154.9690062,0.00023487,2]
[311670326,1705305032672,-246.28917919,0.00023488,2]
[311670327,1705305032681,-162.90595907,0.00023488,2]
[311670328,1705305032690,-154.9690062,0.0002349,2]
[311670329,1705305032699,-275.97693636,0.0002349,2]
[311670330,1705305032708,-57.53936485,0.00023499,2]
[311670575,1705305040740,-228.46651568,0.00023499,2]
[311670576,1705305040749,-154.9690062,0.000235,2]
[311670577,1705305040758,-154.9690062,0.00025834,4]
[311670578,1705305040768,-200.0,0.00025835,7]
[311670579,1705305040777,-133.3771995,0.00027344,2]
[311670580,1705305040788,-854.20592509,0.00027344,2]
[311670885,1705305047834,-853.88434994,0.00022785,2]
[311670886,1705305047846,-1023.78240308,0.00022785,2]
[311670887,1705305047855,-156.53753607,0.0002349,2]
[311670888,1705305047864,-133.05235133,0.00027344,2]
[311671061,1705305266422,2553.45568339,0.00021,2]
[311671063,1705305318837,275.97693636,0.00021,2]
[311671064,1705305332831,401.27205267,0.00021,2]
[311671088,1705306018094,-400.35198,0.00021373,2]
[311671089,1705306018115,-154.9690062,0.00021374,4]
[311671090,1705306018134,-154.9690062,0.00021375,2]
[311671091,1705306018156,-324.9167178,0.0002139,2]
[311671092,1705306018177,-418.85806741,0.00022585,2]
[311671093,1705306030136,-6198.13826415,0.0003,30]
[311671094,1705306030160,-1000.0,0.0003,30]
[311671095,1705306030186,-1000.0,0.00032,32]
[311671096,1705306030209,-160.0,0.00032064,30]
[311671097,1705306030233,-223.0,0.00032064,30]
[311671098,1705306030257,-160.0,0.00032074,30]
[311671099,1705306030280,-223.0,0.00032074,30]
[311671100,1705306030303,-160.0,0.00032084,30]
[311671101,1705306030327,-223.0,0.00032084,30]
[311671102,1705306030357,-1000.0,0.00034,34]
[311671103,1705306030382,-192.9539854,0.00035,120]
[311671104,1705306030406,-160.0,0.0003527,30]
[311671105,1705306030429,-160.0,0.0003528,30]
[311671106,1705306030451,-160.0,0.0003529,30]
[311671107,1705306030474,-223.0,0.0003557,30]
[311671108,1705306030496,-223.0,0.0003558,30]
[311671109,1705306030519,-223.0,0.0003559,30]
[311671110,1705306030541,-1000.0,0.00036,36]
[311671111,1705306030566,-20000.0,0.00037777,30]
[311671112,1705306030589,-1000.0,0.00038,38]
[311671113,1705306030612,-1000.0,0.00038,30]
[311671114,1705306030638,-1000.0,0.000399,120]
[311671115,1705306030661,-160.0,0.0003998,30]
[311671116,1705306030683,-160.0,0.0003999,30]
[311671117,1705306030705,-155.31054285,0.0004,120]
[311671118,1705306030727,-1000.0,0.0004,30]
[311671119,1705306030751,-1512.72675071,0.0004,120]
[311671120,1705306030772,-200.0,0.0004,30]
[311671121,1705306030796,-223.0,0.0004078,30]
[311671122,1705306030818,-223.0,0.0004079,30]
[311671123,1705306030840,-2500.0,0.00040849,30]
[311671124,1705306030863,-170.661,0.00040916,30]
[311671125,1705306030888,-1207.63770869,0.00040995,30]
[311671126,1705306030910,-1000.0,0.00041,30]
[311671127,1705306030933,-200.0,0.00041176,30]
[311671128,1705306030957,-200.0,0.00041176,30]
[311671129,1705306030987,-368.0,0.00041176,30]
[311671130,1705306031018,-2033.0,0.00041534,35]
[311671131,1705306031040,-3033.0,0.00041534,45]
[311671132,1705306031063,-3000.0,0.00041534,30]
[311671133,1705306031087,-44168.87451181,0.00041995,30]
[311671134,1705306031114,-755.6983982,0.00042,120]
[311671135,1705306031137,-1000.0,0.00042,30]
[311671136,1705306031159,-506.0,0.00042,120]
[311671137,1705306031182,-3033.0,0.00042219,42]
[311671138,1705306031205,-1599.2028538,0.000424,120]
[311671139,1705306031228,-213.0,0.00042454,30]
[311671140,1705306031251,-167.08,0.0004248,30]
[311671141,1705306031274,-224.69,0.0004248,30]
[311671142,1705306031296,-160.0,0.0004249,30]
[311671143,1705306031320,-223.0,0.0004249,30]
[311671144,1705306031342,-169.99960251,0.000425,120]
[311671145,1705306031365,-1186.93708324,0.000425,30]
[311671146,1705306031392,-500.0,0.00042999,30]
[311671147,1705306031416,-500.0,0.00042999,30]
[311671148,1705306031541,-431.12251677,0.00042999,30]
[311671149,1705306031565,-429.40372574,0.00042999,30]
[311671150,1705306031590,-500.0,0.00042999,30]
[311671151,1705306031614,-545.2207737,0.00042999,30]
[311671152,1705306031637,-500.0,0.00042999,30]
[311671153,1705306031663,-500.0,0.00042999,30]
[311671154,1705306031686,-500.0,0.00042999,30]
[311671155,1705306031710,-500.0,0.00042999,30]
[311671156,1705306031732,-500.0,0.00042999,30]
[311671157,1705306031755,-500.0,0.00042999,30]
[311671158,1705306031777,-500.0,0.00042999,30]
[311671159,1705306031800,-500.0,0.00042999,30]
[311671160,1705306031824,-500.0,0.00042999,30]
[311671161,1705306031847,-500.0,0.00042999,30]
[311671162,1705306031869,-500.0,0.00042999,30]
[311671163,1705306031894,-500.0,0.00042999,30]
[311671164,1705306031918,-580.60781589,0.00042999,30]
[311671165,1705306031940,-500.0,0.00042999,30]
[311671166,1705306031963,-500.0,0.00042999,30]
[311671167,1705306031986,-500.0,0.00042999,30]
[311671168,1705306032009,-500.0,0.00042999,30]
[311671169,1705306032031,-500.0,0.00042999,30]
[311671170,1705306032055,-500.0,0.00042999,30]
[311671171,1705306032077,-500.0,0.00042999,30]
[311671172,1705306032099,-300.0,0.00042999,30]
[311671173,1705306032121,-500.0,0.00042999,30]
[311671174,1705306032144,-500.0,0.00042999,30]
[311671175,1705306032168,-500.0,0.00042999,30]
[311671176,1705306032191,-500.0,0.00042999,30]
[311671177,1705306032214,-455.90120829,0.00042999,30]
[311671178,1705306032237,-500.0,0.00042999,30]
[311671179,1705306032262,-500.0,0.00042999,30]
[311671180,1705306032286,-500.0,0.00042999,30]
[311671181,1705306032309,-500.0,0.00042999,30]
[311671182,1705306032332,-500.0,0.00042999,30]
[311671183,1705306032355,-171.99902392,0.00042999,30]
[311671184,1705306032377,-500.0,0.00042999,30]
[311671185,1705306032400,-500.0,0.00042999,30]
[311671186,1705306032422,-500.0,0.00042999,30]
[311671187,1705306032444,-520.0,0.00042999,30]
[311671188,1705306032467,-500.0,0.00042999,30]
[311671189,1705306032489,-500.0,0.00042999,30]
[311671190,1705306032512,-500.0,0.00042999,30]
[311671191,1705306032535,-500.0,0.00042999,30]
[311671192,1705306032557,-500.0,0.00042999,30]
[311671193,1705306032580,-586.77036249,0.00042999,30]
[311671194,1705306032603,-500.0,0.00042999,30]
[311671195,1705306032626,-5033.0,0.00043589,60]
[311671196,1705306032648,-401.08272803,0.00043677,120]
[311671197,1705306032672,-2000.0,0.00043733,30]
[311671198,1705306032694,-20000.0,0.00043778,120]
[311671199,1705306032717,-365.0,0.00043806,30]
[311671200,1705306032738,-365.0,0.00043806,30]
[311671201,1705306032760,-365.0,0.00043816,30]
[311671202,1705306032782,-365.0,0.00043816,30]
[311671203,1705306032804,-365.0,0.00043816,30]
[311671204,1705306032825,-368.75,0.00043816,30]
[311671205,1705306032848,-365.0,0.00043826,30]
[311671206,1705306032869,-365.0,0.00043826,30]
[311671207,1705306032890,-365.0,0.00043826,30]
[311671208,1705306032912,-365.0,0.00043826,30]
[311671209,1705306032934,-184.78657172,0.000445,30]
[311671210,1705306032956,-286.66805274,0.000449,120]
[311671211,1705306032980,-237.0,0.00044908,90]
[311671212,1705306033002,-592391.72477588,0.00045,30]
[311671213,1705306033023,-1002.98,0.00045,120]
[311671214,1705306033045,-200.0,0.00045,120]
[311671215,1705306033068,-237.0,0.00045,90]
[311671216,1705306033091,-400.0,0.00045,120]
[311671217,1705306033113,-500.0,0.00045,120]
[311671218,1705306033137,-272.61038685,0.00045,120]
[311671219,1705306033160,-500.0,0.00045,120]
[311671220,1705306033182,-215.56125838,0.00045,120]
[311671221,1705306033206,-500.0,0.00045,120]
[311671222,1705306033228,-500.0,0.00045,120]
[311671223,1705306033252,-500.0,0.00045,120]
[311671224,1705306033275,-500.0,0.00045,120]
[311671225,1705306033298,-500.0,0.00045,120]
[311671226,1705306033320,-500.0,0.00045,120]
[311671227,1705306033344,-500.0,0.00045,120]
[311671228,1705306033366,-540.30390794,0.00045,120]
[311671229,1705306033390,-477.95060414,0.00045,120]
[311671230,1705306033415,-500.0,0.00045,120]
[311671231,1705306033440,-500.0,0.00045,120]
[311671232,1705306033464,-500.0,0.00045,120]
[311671233,1705306033486,-500.0,0.00045,120]
[311671234,1705306033509,-500.0,0.00045,120]
[311671235,1705306033532,-500.0,0.00045,120]
[311671236,1705306033555,-214.70186287,0.00045,120]
[311671237,1705306033577,-510.0,0.00045,120]
[311671238,1705306033600,-500.0,0.00045,120]
[311671239,1705306033622,-500.0,0.00045,120]
[311671240,1705306033646,-500.0,0.00045,120]
[311671241,1705306033669,-293.38518124,0.00045,120]
[311671242,1705306033692,-500.0,0.00045,120]
[311671243,1705306033715,-200.0,0.00045294,30]
[311671244,1705306033737,-200.0,0.00045294,30]
[311671245,1705306033761,-200.0,0.00045294,30]
[311671246,1705306033783,-200.0,0.00045294,30]
[311671247,1705306033806,-275.0,0.00045294,30]
[311671248,1705306033830,-213.90320001,0.00046816,30]
[311671249,1705306033853,-237.0,0.00046865,90]
[311671250,1705306033962,-241.0,0.00049209,90]
[311671251,1705306033989,-2415.27541737,0.00049655,120]
[311671252,1705306034011,-817.068,0.0004976,120]
[311671253,1705306034033,-223.837,0.0004976,120]
[311671254,1705306034054,-817.068,0.0004976,120]
[311671255,1705306034076,-223.837,0.0004976,120]
[311671256,1705306034098,-817.069,0.0004976,120]
[311671257,1705306034121,-223.837,0.0004976,120]
[311671258,1705306034142,-817.068,0.0004976,120]
[311671259,1705306034164,-223.838,0.0004976,120]
[311671260,1705306034186,-817.068,0.0004976,120]
[311671261,1705306034208,-223.837,0.0004976,120]
[311671262,1705306034231,-251.07911394,0.0005,60]
[311671263,1705306034253,-1000.0,0.0005,30]
[311671264,1705306034274,-14897.51825962,0.0005,30]
[311671265,1705306034297,-213.0,0.00050668,30]
[311671266,1705306034319,-1000.0,0.00051,30]
[311671267,1705306034344,-170.0,0.00051,120]
[311671268,1705306034366,-1000.0,0.00052054,120]
[311671269,1705306034389,-1000.0,0.00052054,120]
[311671270,1705306034411,-1093.69952493,0.00052054,120]
[311671271,1705306034433,-237.0,0.00052489,120]
[311671272,1705306034456,-2828.98595321,0.00052513,120]
[311671273,1705306034478,-1000.0,0.00053,120]
[311671274,1705306034501,-1000.0,0.00053,120]
[311671275,1705306034523,-170.0,0.0005304,120]
[311671276,1705306034546,-200.0,0.00053465,120]
[311671277,1705306034568,-200.0,0.00053493,120]
[311671278,1705306034591,-1672.20800466,0.00053978,61]
[311671279,1705306034612,-1000.0,0.00054,120]
[311671280,1705306034634,-1000.0,0.00054499,120]
[311671281,1705306034657,-213.0,0.0005452,30]
[311671282,1705306034745,154.9690062,0.00020326,4]
[311671284,1705306046961,-868.00403631,0.00042556,120]
[311671285,1705306046988,-150.05447377,0.00042556,30]
[311671286,1705306047016,-540.18491516,0.00042556,120]
[311671287,1705306047042,-475.26549296,0.00042556,120]
[311671288,1705306047066,-526.46490694,0.00042556,120]
[311671289,1705306047090,-414.50868771,0.00042556,120]
[311671290,1705306047116,-659.81841398,0.00042556,30]
[311671291,1705306047141,-816.51099268,0.00042556,120]
[311671292,1705306047169,-899.46042406,0.00042556,120]
[311671293,1705306047194,-1140.37647247,0.00042556,30]
[311671294,1705306047219,-1088.88633974,0.00042556,120]
[311671295,1705306047246,-574.80830662,0.00042556,120]
[311671296,1705306047272,-1000.00001212,0.00042556,65]
[311671297,1705306047297,-154.98450055,0.00042556,120]
[311671298,1705306047320,-150.91183712,0.00042556,30]
[311671299,1705306047344,-313.7372201,0.00042556,120]
[311671300,1705306047372,-549.49798814,0.00042556,30]
[311671301,1705306047398,-500.0,0.00042556,120]
[311671302,1705306047425,-2089.78807763,0.00042556,120]
[311671303,1705306047450,-480.7269058,0.00042556,120]
[311671304,1705306047475,-1257.40855137,0.00042556,60]
[311671305,1705306047500,-2000.0,0.00042556,31]
[311671306,1705306047526,-4016.0,0.00042556,32]
[311671307,1705306047552,-1623.77801639,0.00042556,120]
[311671308,1705306047577,-617.45112113,0.00042556,30]
[311671309,1705306047606,-11874.0,0.00042556,120]
[311671310,1705306047633,-471.52033246,0.00042556,30]
[311671311,1705306048454,154.9690062,0.00020326,4]
[311671312,1705306056034,365.0,0.00043826,30]
[311671313,1705306056782,365.0,0.00043816,30]
[311671314,1705306057228,365.0,0.00043806,30]
[311671315,1705306057686,365.0,0.00043826,30]
[311671316,1705306058431,365.0,0.00043816,30]
[311671317,1705306058878,365.0,0.00043806,30]
[311671318,1705306059313,365.0,0.00043826,30]
[311671319,1705306059759,365.0,0.00043816,30]
[311671320,1705306060202,365.0,0.00043826,30]
[311671321,1705306060652,368.75,0.00043816,30]
[311671322,1705306068209,200.0,0.00021,2]
[311671325,1705306119580,155.25665483,0.00021,2]
[311671330,1705306228127,154.99732422,0.00021,2]
[311671367,1705306237982,-213.13739698,0.00021883,2]
[311671369,1705306237992,-1240.92738063,0.00021883,2]
[311671371,1705306238002,-322.69466175,0.00021884,2]
[311671372,1705306238011,-154.9690062,0.00021885,4]
[311671374,1705306238020,-411.0254517,0.00021888,2]
[311671375,1705306238029,-332.265644,0.00021893,2]
[311671377,1705306238038,-211.60864202,0.00022,2]
[311671378,1705306238047,-198.36108158,0.00022583,2]
[311671380,1705306238056,-155.0619876,0.00022584,2]
[311671382,1705306238066,-401.36971048,0.00022584,2]
[311671383,1705306238075,-24481.14193259,0.00022585,2]
[311671389,1705306238087,-172.21707739,0.00022913,2]
[311671391,1705306238206,-3227.0435712,0.00023013,2]
[311671393,1705306238215,-2167.2566404,0.00023367,2]
[311671395,1705306238231,-154.9690062,0.000235,2]
[311671396,1705306238240,-200.0,0.00024843,7]
[311671398,1705306238249,-324.9167178,0.0002639,2]
[311671399,1705306238259,-280.0,0.00027327,15]
[311671400,1705306238269,-261.19258853,0.000274,2]
[311671401,1705306238278,-266.46647749,0.00028755,3]
[311671402,1705306238287,-360.14000042,0.00028755,3]
[311671404,1705306238296,-927.93020422,0.00028755,3]
[311671406,1705306238305,-259.43960709,0.00029,2]
[311671407,1705306238314,-2454.18896115,0.00029,2]
[311671409,1705306238324,-535.55685521,0.0002941,2]
[311671411,1705306238333,-507.44515137,0.0002968,3]
[311671413,1705306238342,-155.0309938,0.00029787,2]
[311671414,1705306238351,-246.10396651,0.00029788,2]
[311671416,1705306238361,-162.79031221,0.00029788,2]
[311671418,1705306238370,-266.26101319,0.00029788,2]
[311671419,1705306238378,-151.0,0.00029789,2]
[311671421,1705306238388,-151.0,0.00029789,2]
[311671423,1705306238397,-151.0,0.00029789,2]
[311671425,1705306238407,-151.0,0.00029789,2]
[311671426,1705306238416,-155.0,0.00029789,2]
[311671428,1705306238425,-323.00558521,0.00029789,2]
[311671430,1705306238435,-155.0,0.00029789,2]
[311671432,1705306238445,-155.44645526,0.00029789,2]
[311671433,1705306238454,-863.93009296,0.00029789,2]
[311671435,1705306238463,-155.41425937,0.00029789,2]
[311671437,1705306238472,-611.30969374,0.00029789,2]
[311671439,1705306238480,-174.89453805,0.00029789,2]
[311671440,1705306238490,-362.07716979,0.00029789,2]
[311671442,1705306238499,-1738.04312491,0.0002979,2]
[311671444,1705306238508,-155.20195616,0.00029791,2]
[311671445,1705306238517,-1990.42773149,0.00029791,2]
[311671447,1705306238526,-191.10838986,0.00029791,2]
[311671449,1705306238535,-556.29532898,0.00029791,2]
[311671451,1705306238544,-160.82569621,0.00029791,2]
[311671453,1705306238553,-167.3251041,0.00029791,2]
[311671454,1705306238562,-155.0,0.00029791,2]
[311671456,1705306238571,-155.0,0.00029791,2]
[311671458,1705306238580,-686.84015754,0.00029791,2]
[311671459,1705306238589,-151.0,0.00029791,2]
[311671461,1705306238598,-151.0,0.00029791,2]
[311671463,1705306238608,-151.0,0.00029791,2]
[311671465,1705306238616,-151.0,0.00029791,2]
[311671466,1705306238625,-155.0,0.00029792,2]
[311671468,1705306238634,-151.0,0.00029793,2]
[311671470,1705306238644,-151.0,0.00029793,2]
[311671472,1705306238653,-11640.54,0.00029959,3]
[311671474,1705306238662,-608.56,0.00029979,2]
[311671475,1705306238671,-19932.81,0.00029979,3]
[311671477,1705306238680,-151.0,0.0002998,2]
[311671479,1705306238689,-151.0,0.0002998,2]
[311671480,1705306238697,-500.0,0.00029988,2]
[311671482,1705306238706,-500.0,0.00029989,2]
[311671484,1705306238715,-500.0,0.00029989,2]
[311671486,1705306238725,-500.0,0.00029989,2]
[311671487,1705306238734,-500.0,0.00029989,2]
[311671489,1705306238743,-500.0,0.00029989,2]
[311671491,1705306238752,-501.02652475,0.00029989,2]
[311671493,1705306238761,-500.0,0.00029989,2]
[311671494,1705306238770,-619.09681012,0.00029989,2]
[311671496,1705306238779,-488.22852689,0.00029989,2]
[311671498,1705306238787,-500.0,0.00029989,2]
[311671500,1705306238796,-500.0,0.00029989,2]
[311671501,1705306238806,-500.0,0.00029989,2]
[311671503,1705306238814,-500.0,0.00029989,2]
[311671504,1705306238823,-500.0,0.00029989,2]
[311671505,1705306238833,-500.0,0.00029989,2]
[311671506,1705306238842,-500.0,0.00029989,2]
[311671507,1705306238851,-500.0,0.00029989,2]
[311671508,1705306238861,-1619.55,0.00029989,2]
[311671509,1705306238870,-500.0,0.00029989,2]
[311671510,1705306238879,-513.88,0.00029989,2]
[311671511,1705306238888,-500.0,0.00029989,2]
[311671512,1705306238897,-500.0,0.00029989,2]
[311671513,1705306238906,-500.0,0.00029989,2]
[311671514,1705306238916,-500.0,0.00029989,2]
[311671515,1705306238925,-500.0,0.00029989,2]
[311671516,1705306238934,-500.0,0.00029989,2]
[311671517,1705306238943,-151.0,0.00029989,2]
[311671518,1705306238952,-151.0,0.00029989,2]
[311671519,1705306238962,-151.0,0.00029989,2]
[311671520,1705306238971,-301.887646,0.00029989,2]
[311671521,1705306238981,-151.0,0.0002999,2]
[311671522,1705306238990,-2035.5021214,0.00029998,2]
[311671523,1705306239000,-151.0,0.00029999,2]
[311671524,1705306239009,-500.0,0.00029999,2]
[311671525,1705306239018,-500.0,0.00029999,2]
[311671526,1705306239027,-500.0,0.00029999,2]
[311671527,1705306239037,-500.0,0.00029999,2]
[311671528,1705306239046,-500.0,0.00029999,2]
[311671529,1705306239055,-3730.18,0.00029999,2]
[311671530,1705306239064,-500.0,0.00029999,2]
[311671531,1705306239074,-500.0,0.00029999,2]
[311671532,1705306239083,-500.0,0.00029999,2]
[311671533,1705306239092,-500.0,0.00029999,2]
[311671534,1705306239102,-500.0,0.00029999,2]
[311671535,1705306239111,-154.9690062,0.0003,4]
[311671536,1705306239121,-28282.07598088,0.0003,3]
[311671537,1705306239131,-100000.0,0.0003,2]
[311671538,1705306239140,-391.0,0.0003006,15]
[311671539,1705306239149,-197.5089968,0.0003013,2]
[311671540,1705306239158,-608.56,0.00030253,2]
[311671541,1705306239167,-500.0,0.00030263,2]
[311671542,1705306239176,-500.0,0.00030263,2]
[311671543,1705306239185,-500.0,0.00030263,2]
[311671544,1705306239194,-500.0,0.00030263,2]
[311671545,1705306239203,-1619.55,0.00030263,2]
[311671546,1705306239212,-513.88,0.00030263,2]
[311671547,1705306239222,-500.0,0.00030263,2]
[311671548,1705306239235,-500.0,0.00030263,2]
[311671549,1705306239243,-500.0,0.00030263,2]
[311671550,1705306239253,-500.0,0.00030263,2]
[311671551,1705306239262,-500.0,0.00030273,2]
[311671552,1705306239271,-500.0,0.00030273,2]
[311671553,1705306239280,-500.0,0.00030273,2]
[311671554,1705306239289,-500.0,0.00030273,2]
[311671555,1705306239298,-3730.18,0.00030273,2]
[311671556,1705306239308,-500.0,0.00030273,2]
[311671557,1705306239318,-500.0,0.00030273,2]
[311671558,1705306239327,-500.0,0.00030273,2]
[311671559,1705306239337,-322.10256905,0.00030273,2]
[311671560,1705306239346,-608.56,0.00030527,2]
[311671561,1705306239355,-500.0,0.00030537,2]
[311671562,1705306239364,-500.0,0.00030537,2]
[311671563,1705306239374,-1619.55,0.00030537,2]
[311671564,1705306239383,-513.88,0.00030537,2]
[311671565,1705306239392,-500.0,0.00030537,2]
[311671566,1705306239402,-500.0,0.00030537,2]
[311671567,1705306239411,-500.0,0.00030547,2]
[311671568,1705306239420,-500.0,0.00030547,2]
[311671569,1705306239429,-500.0,0.00030547,2]
[311671570,1705306239439,-3730.18,0.00030547,2]
[311671571,1705306239448,-500.0,0.00030547,2]
[311671572,1705306239457,-608.56,0.00030801,2]
[311671573,1705306239466,-500.0,0.00030811,2]
[311671574,1705306239475,-500.0,0.00030811,2]
[311671575,1705306239485,-1619.55,0.00030811,2]
[311671576,1705306239494,-513.88,0.00030811,2]
[311671577,1705306239503,-249.91,0.00030811,2]
[311671578,1705306239512,-472.29829546,0.00030811,2]
[311671579,1705306239522,-500.0,0.00030821,2]
[311671580,1705306239531,-500.0,0.00030821,2]
[311671581,1705306239540,-500.0,0.00030821,2]
[311671582,1705306239549,-3730.18,0.00030821,2]
[311671583,1705306239558,-160.95,0.00030821,2]
[311671584,1705306239567,-608.56,0.00031075,2]
[311671585,1705306239577,-500.0,0.00031085,2]
[311671586,1705306239586,-500.0,0.00031085,2]
[311671587,1705306239595,-1619.55,0.00031085,2]
[311671588,1705306239605,-513.88,0.00031085,2]
[311671589,1705306239615,-500.0,0.00031095,2]
[311671590,1705306239624,-500.0,0.00031095,2]
[311671591,1705306239634,-500.0,0.00031095,2]
[311671592,1705306239643,-3730.18,0.00031095,2]
[311671593,1705306239653,-945.91706328,0.00031129,4]
[311671594,1705306239662,-523.08396244,0.0003113,2]
[311671595,1705306239671,-151.0,0.0003113,2]
[311671596,1705306239680,-151.0,0.0003113,2]
[311671597,1705306239689,-1251.25826469,0.0003113,4]
[311671598,1705306239698,-15888.77749284,0.0003113,4]
[311671599,1705306239707,-160.0,0.00031339,30]
[311671600,1705306239716,-160.0,0.00031349,30]
[311671601,1705306239725,-608.56,0.00031349,2]
[311671602,1705306239734,-150.0,0.00031354,2]
[311671603,1705306239743,-500.0,0.00031359,2]
[311671604,1705306239753,-500.0,0.00031359,2]
[311671605,1705306239763,-160.0,0.00031359,30]
[311671606,1705306239772,-1619.55,0.00031359,2]
[311671607,1705306239781,-513.88,0.00031359,2]
[311671608,1705306239790,-500.0,0.00031369,2]
[311671609,1705306239799,-500.0,0.00031369,2]
[311671610,1705306239808,-500.0,0.00031369,2]
[311671611,1705306239818,-3730.18,0.00031369,2]
[311671612,1705306239828,-324.9167178,0.0003139,2]
[311671613,1705306239837,-608.56,0.00031623,2]
[311671614,1705306239846,-500.0,0.00031633,2]
[311671615,1705306239855,-500.0,0.00031633,2]